bitfinex-derivatives/quotes_BTCF0:USTF0_20250926
["timestamp","ask_amount","ask_price","bid_price","bid_amount"]
[1758889403904,1.73989131,108880.0,108870.0,0.54286413]
[1758889404100,1.73989131,108880.0,108870.0,0.18764152]
[1758889404303,1.73989131,108880.0,108870.0,0.53001413]
[1758889404806,1.73989131,108880.0,108870.0,0.43822703]
[1758889405405,2.45591392,108880.0,108870.0,0.08300442]
[1758889405606,2.45591392,108880.0,108870.0,0.06609442]
[1758889405901,0.1258772,108870.0,108860.0,0.80506703]
[1758889406093,0.1258772,108870.0,108860.0,0.44984442]
[1758889406094,0.48109981,108870.0,108860.0,0.44984442]
[1758889406607,0.48109981,108870.0,108860.0,0.80506703]
[1758889406906,0.1258772,108870.0,108860.0,0.80506703]
[1758889407108,0.48109981,108870.0,108860.0,0.89686263]
[1758889407307,0.1328772,108870.0,108860.0,0.89686263]
[1758889407495,0.48809981,108870.0,108860.0,0.89686263]
[1758889408708,0.49722537,108870.0,108860.0,0.89686263]
[1758889409308,0.49722537,108870.0,108860.0,0.90971263]
[1758889409509,0.99204276,108870.0,108860.0,1.26493524]
[1758889410209,0.99804276,108870.0,108860.0,1.26493524]
[1758889410898,0.98513276,108870.0,108860.0,1.26493524]
[1758889411103,0.98713276,108870.0,108860.0,1.26493524]
[1758889411505,0.98677276,108870.0,108860.0,1.26493524]
[1758889411913,0.98677276,108870.0,108860.0,0.55449002]
[1758889412213,1.35497537,108870.0,108860.0,0.44984442]
[1758889412507,1.35497537,108870.0,108860.0,0.08904442]
[1758889412813,1.71577537,108870.0,108860.0,0.08904442]
[1758889413708,1.71577537,108870.0,108860.0,0.02295]
[1758889414203,0.1261056,108860.0,108850.0,0.54019672]
[1758889414404,0.48132821,108860.0,108850.0,0.90821933]
[1758889415909,0.55465549,108860.0,108850.0,0.90821933]
[1758889416813,0.55565549,108860.0,108850.0,0.90821933]
[1758889417007,0.55565549,108860.0,108850.0,0.55299672]
[1758889417207,0.55565549,108860.0,108850.0,0.90821933]
[1758889418015,0.55565549,108860.0,108850.0,0.89541933]
[1758889418309,0.9108781,108860.0,108850.0,0.44839442]
[1758889418700,0.55565549,108860.0,108850.0,0.89542103]
[1758889419211,0.55565549,108860.0,108850.0,0.90822103]
[1758889419212,0.18745288,108860.0,108850.0,0.90822103]
[1758889419515,0.54267549,108860.0,108850.0,0.90822103]
[1758889421512,0.55565549,108860.0,108850.0,0.90822103]
[1758889424627,0.55565549,108860.0,108850.0,0.89542103]
[1758889425621,0.18745288,108860.0,108850.0,0.90822103]
[1758889425827,0.54267549,108860.0,108850.0,0.90822103]
[1758889426422,0.18745288,108860.0,108850.0,0.90822103]
[1758889426815,0.54267549,108860.0,108850.0,0.90822103]
[1758889428415,0.18745288,108860.0,108850.0,0.90822103]
[1758889428615,0.54267549,108860.0,108850.0,0.90822103]
[1758889428822,0.09565728,108860.0,108850.0,0.90822103]
[1758889429026,0.07432728,108860.0,108850.0,1.68921454]
[1758889429425,0.07432728,108860.0,108850.0,2.69463139]
[1758889429728,0.07432728,108860.0,108850.0,2.61240186]
[1758889430427,0.07432728,108860.0,108850.0,2.61540186]
[1758889431325,0.03932728,108860.0,108850.0,2.71247052]
[1758889431516,0.3608,108870.0,108860.0,0.0917956]
[1758889431717,0.3608,108870.0,108860.0,0.82374082]
[1758889432221,0.3608,108870.0,108860.0,0.91560614]
[1758889432421,0.3608,108870.0,108860.0,1.27082875]
[1758889432625,0.3608,108870.0,108860.0,2.52742875]
[1758889432817,0.3608,108870.0,108860.0,2.17220614]
[1758889433019,0.35949285,108880.0,108870.0,0.0917872]
[1758889433218,0.35949285,108880.0,108870.0,0.80223242]
[1758889433416,0.35949285,108880.0,108870.0,1.30354614]
[1758889433626,0.35949285,108880.0,108870.0,1.39539459]
[1758889433822,0.01298,108890.0,108880.0,0.0917787]
[1758889434124,0.0567904,108900.0,108890.0,0.0917703]
[1758889434323,0.0567904,108900.0,108890.0,0.86818516]
[1758889434629,0.0567904,108900.0,108890.0,1.72526516]
[1758889435023,0.0567904,108900.0,108890.0,1.81710517]
[1758889435825,0.0597904,108900.0,108890.0,1.81710517]
[1758889439222,0.0597904,108900.0,108890.0,1.75113553]
[1758889440124,0.1728823,108900.0,108890.0,0.89405553]
[1758889440331,0.1728823,108900.0,108890.0,0.53883292]
[1758889440526,0.1728823,108900.0,108890.0,1.39695292]
[1758889441026,0.1728823,108900.0,108890.0,1.04173031]
[1758889441244,0.1728823,108900.0,108890.0,1.39695292]
[1758889442039,0.1728823,108900.0,108890.0,1.30511291]
[1758889442641,0.1728823,108900.0,108890.0,1.42337483]
[1758889445443,0.1728823,108900.0,108890.0,0.9498903]
[1758889445641,0.1728823,108900.0,108890.0,1.42337483]
[1758889445844,0.1728823,108900.0,108890.0,0.9498903]
[1758889446045,0.1728823,108900.0,108890.0,1.42337483]
[1758889447149,0.1273803,108890.0,108880.0,0.53945417]
[1758889447445,0.1273803,108890.0,108880.0,1.48827037]
[1758889448641,0.03561,108890.0,108880.0,1.01478584]
[1758889448837,0.03561,108890.0,108880.0,1.48827037]
[1758889449041,0.01294,108890.0,108880.0,1.42230073]
[1758889449243,0.1515582,108900.0,108880.0,1.42230073]
[1758889449244,0.0438104,108900.0,108890.0,0.0917703]
[1758889449451,0.01294,108910.0,108900.0,0.0917619]
[1758889449651,0.01294,108910.0,108900.0,1.44404643]
[1758889450146,0.01294,108910.0,108900.0,1.53588644]
[1758889451848,0.01294,108910.0,108900.0,2.51500117]
[1758889452052,0.01294,108910.0,108900.0,2.58097081]
[1758889452353,0.01394,108910.0,108900.0,2.10748628]
[1758889452650,0.01394,108910.0,108900.0,2.10848628]
[1758889453350,0.01294,108910.0,108900.0,2.04151664]
[1758889453553,0.01294,108910.0,108900.0,2.04251664]
[1758889453750,0.01294,108910.0,108900.0,1.56903211]
[1758889453952,0.01294,108910.0,108900.0,1.64251664]
[1758889454251,0.01294,108910.0,108900.0,1.65051664]
[1758889454455,0.01294,108910.0,108900.0,0.77171664]
[1758889454654,0.01294,108910.0,108900.0,1.65179664]
[1758889455556,0.01294,108910.0,108900.0,0.77171664]
[1758889455759,0.01294,108910.0,108900.0,1.65183664]
[1758889455950,0.01294,108910.0,108900.0,0.77171664]
[1758889456148,0.01294,108910.0,108900.0,1.06608644]
[1758889456347,0.01294,108910.0,108900.0,1.94612644]
[1758889456955,0.01294,108910.0,108900.0,1.94412644]
[1758889457352,0.01494,108910.0,108900.0,1.93712644]
[1758889458358,0.01494,108910.0,108900.0,1.05708644]
[1758889458652,0.01494,108910.0,108900.0,1.93668644]
[1758889458854,0.01494,108910.0,108900.0,1.05708644]
[1758889459054,0.01494,108910.0,108900.0,1.53664644]
[1758889460555,0.01494,108910.0,108900.0,1.60261608]
[1758889462353,0.01494,108910.0,108900.0,1.70880484]
[1758889464558,0.01494,108910.0,108900.0,1.70800484]
[1758889466664,0.01494,108910.0,108900.0,1.70736484]
[1758889467158,0.01294,108910.0,108900.0,1.71436484]
[1758889467757,0.01394,108910.0,108900.0,1.70936484]
[1758889468465,0.03661,108910.0,108900.0,0.25157155]
[1758889468666,0.03661,108910.0,108900.0,1.12913155]
[1758889468866,0.03661,108910.0,108900.0,1.60261608]
[1758889469067,0.03661,108910.0,108900.0,1.60061608]
[1758889469369,0.01394,108910.0,108900.0,1.60061608]
[1758889470566,0.01394,108910.0,108900.0,0.72305608]
[1758889470760,0.01394,108910.0,108900.0,1.60065608]
[1758889473462,0.01394,108910.0,108900.0,1.53468644]
[1758889473768,0.03661,108910.0,108900.0,0.72300894]
[1758889473955,0.03661,108910.0,108900.0,1.60044894]
[1758889477462,0.03661,108910.0,108900.0,1.53452644]
[1758889479263,0.03661,108910.0,108900.0,1.61692957]
[1758889480363,0.01394,108910.0,108900.0,1.61692957]
[1758889483072,0.01394,108910.0,108900.0,0.73948957]
[1758889483370,0.01394,108910.0,108900.0,1.61480957]
[1758889484571,0.01394,108910.0,108900.0,2.01480957]
[1758889484867,0.08567243,108920.0,108910.0,0.0917533]
[1758889485067,0.01298,108920.0,108910.0,1.12130626]
[1758889485269,0.01298,108920.0,108910.0,2.09768604]
[1758889485471,0.01298,108920.0,108910.0,2.10697197]
[1758889485667,0.01298,108920.0,108910.0,2.50697197]
[1758889486067,0.01298,108920.0,108910.0,2.50709197]
[1758889487373,0.01398,108920.0,108910.0,2.50709197]
[1758889488375,0.01298,108920.0,108910.0,2.50709197]
[1758889489071,0.01298,108920.0,108910.0,1.63193197]
[1758889489277,0.01298,108920.0,108910.0,2.58955132]
[1758889489466,0.01298,108920.0,108910.0,2.50709197]
[1758889490271,0.01298,108920.0,108910.0,2.58953785]
[1758889490772,0.01294,108930.0,108920.0,0.0917451]
[1758889490978,0.01294,108930.0,108920.0,1.03871416]
[1758889491168,0.01294,108930.0,108920.0,1.13540396]
[1758889491364,0.01294,108930.0,108920.0,1.34258305]
[1758889491768,0.01294,108930.0,108920.0,1.30962061]
[1758889492075,0.01294,108930.0,108920.0,2.18430061]
[1758889492274,0.01994,108930.0,108920.0,1.30962061]
[1758889492472,0.01994,108930.0,108920.0,2.18410061]
[1758889495273,0.01994,108930.0,108920.0,2.10169867]
[1758889496378,0.01994,108930.0,108920.0,1.22721867]
[1758889496581,0.01318,108920.0,108910.0,0.64763647]
[1758889496771,0.03452,108920.0,108910.0,1.50541056]
[1758889496971,0.03452,108920.0,108910.0,1.59721684]
[1758889497670,0.1262655,108920.0,108910.0,0.72289684]
[1758889497981,0.5262655,108920.0,108910.0,0.96691]
[1758889498179,0.5262655,108920.0,108910.0,1.44039453]
[1758889498477,0.5262655,108920.0,108910.0,0.96691]
[1758889498678,0.53532785,108920.0,108910.0,0.96691]
[1758889500180,0.5262655,108920.0,108910.0,0.96691]
[1758889500380,0.43452,108920.0,108910.0,1.44039453]
[1758889500681,0.43452,108920.0,108910.0,0.96691]
[1758889500870,0.5262655,108920.0,108910.0,0.96691]
[1758889501074,0.5262655,108920.0,108910.0,1.44039453]
[1758889501485,0.53532034,108920.0,108910.0,0.96691]
[1758889502284,0.53532034,108920.0,108910.0,0.96647]
[1758889502970,0.5262655,108920.0,108910.0,0.96647]
[1758889503585,0.43452,108920.0,108910.0,0.96647]
[1758889503883,0.43452,108920.0,108910.0,1.43995453]
[1758889504575,0.43452,108920.0,108910.0,1.32144926]
[1758889504780,0.5262655,108920.0,108910.0,1.32144926]
[1758889505676,0.5262655,108920.0,108910.0,0.87416]
[1758889505881,0.5262655,108920.0,108910.0,1.32089296]
[1758889506077,0.43452,108920.0,108910.0,1.32089296]
[1758889508087,0.43452,108920.0,108910.0,1.67587222]
[1758889508585,0.01318,108920.0,108910.0,1.67587222]
[1758889508791,0.01318,108920.0,108910.0,1.83346296]
[1758889509584,0.01318,108920.0,108910.0,0.95938296]
[1758889509783,0.01318,108920.0,108910.0,1.83358296]
[1758889511192,0.01318,108920.0,108910.0,0.95938296]
[1758889511489,0.03551,108920.0,108910.0,1.83426296]
[1758889511682,0.01318,108920.0,108910.0,1.83426296]
[1758889512689,0.01318,108920.0,108910.0,1.76840693]
[1758889512986,0.01318,108920.0,108910.0,1.85080887]
[1758889513380,0.01318,108920.0,108910.0,1.76840693]
[1758889514093,0.01318,108920.0,108910.0,2.16840693]
[1758889514293,0.01318,108920.0,108910.0,1.54085035]
[1758889514487,0.01318,108920.0,108910.0,2.25024887]
[1758889514688,0.01318,108920.0,108910.0,2.16784693]
[1758889515389,0.01318,108920.0,108910.0,2.25024887]
[1758889516195,0.01318,108920.0,108910.0,2.16984693]
[1758889517197,0.01318,108920.0,108910.0,2.16784693]
[1758889517896,0.01318,108920.0,108910.0,2.17384693]
[1758889518393,0.01318,108920.0,108910.0,2.16784693]
[1758889521705,0.01318,108920.0,108910.0,2.17384693]
[1758889522399,0.01318,108920.0,108910.0,2.17584693]
[1758889523093,0.01318,108920.0,108910.0,2.17384693]
[1758889523393,0.01318,108920.0,108910.0,2.17584693]
[1758889525296,0.01318,108920.0,108910.0,2.25824887]
[1758889526598,0.01318,108920.0,108910.0,1.38392887]
[1758889526795,0.01318,108920.0,108910.0,2.25560887]
[1758889527511,0.01318,108920.0,108910.0,2.25520887]
[1758889528602,0.01318,108920.0,108910.0,1.38392887]
[1758889528900,0.01318,108920.0,108910.0,1.90018961]
[1758889529101,0.01318,108920.0,108910.0,2.25516887]
[1758889531005,0.01318,108920.0,108910.0,1.50018961]
[1758889532603,0.01318,108920.0,108910.0,1.85516887]
[1758889533806,0.88223476,108920.0,108910.0,1.23237926]
[1758889534000,0.5272555,108920.0,108910.0,1.23205926]
[1758889534310,0.43551,108920.0,108910.0,1.3898132]
[1758889534708,0.5272555,108920.0,108910.0,1.3898132]
[1758889537810,0.5272555,108920.0,108910.0,1.38982138]
[1758889538012,0.5272555,108920.0,108910.0,1.03484212]
[1758889538216,0.5272555,108920.0,108910.0,1.38982138]
[1758889538711,0.5272555,108920.0,108910.0,1.03484212]
[1758889538908,0.5272555,108920.0,108910.0,1.38982138]
[1758889539412,0.1272555,108920.0,108910.0,1.38982138]
[1758889539712,0.03551,108920.0,108910.0,1.38982138]
[1758889539908,0.01318,108920.0,108910.0,1.74480064]
[1758889540108,0.01318,108920.0,108910.0,1.67879242]
[1758889540511,0.01318,108920.0,108910.0,1.32381316]
[1758889540716,0.1049255,108920.0,108910.0,1.32381316]
[1758889540914,0.01318,108920.0,108910.0,1.38981306]
[1758889541509,0.01318,108920.0,108910.0,1.74479232]
[1758889541806,0.01318,108920.0,108910.0,1.67879242]
[1758889543316,0.01318,108920.0,108910.0,1.74478261]
[1758889543515,0.01318,108920.0,108910.0,1.67879242]
[1758889543703,0.01318,108920.0,108910.0,1.74478261]
[1758889543909,0.01318,108920.0,108910.0,1.38980335]
[1758889544410,0.01318,108920.0,108910.0,1.32381316]
[1758889544714,0.01318,108920.0,108910.0,1.67879242]
[1758889545218,0.03486,108920.0,108910.0,1.67695242]
[1758889547109,0.03486,108920.0,108910.0,1.67687242]
[1758889547720,0.03486,108920.0,108910.0,0.9669139]
[1758889548014,0.03486,108920.0,108910.0,1.32189316]
[1758889548316,0.03486,108920.0,108910.0,0.45473316]
[1758889548511,0.03486,108920.0,108910.0,1.32129316]
[1758889548717,0.1266053,108920.0,108910.0,1.32129316]
[1758889549918,0.88158456,108920.0,108910.0,1.32089316]
[1758889550216,0.5266053,108920.0,108910.0,1.32089316]
[1758889554121,0.5218653,108920.0,108910.0,0.87416]
[1758889554321,0.5218653,108920.0,108910.0,1.22913926]
[1758889554522,0.5218653,108920.0,108910.0,0.42896596]
[1758889554823,0.87684456,108920.0,108910.0,1.29340596]
[1758889555719,0.5218653,108920.0,108910.0,1.29340596]
[1758889558421,0.5218653,108920.0,108910.0,1.38515986]
[1758889558612,0.5218653,108920.0,108910.0,1.29340596]
[1758889560320,0.1218653,108920.0,108910.0,1.29340596]
[1758889560625,0.1218653,108920.0,108910.0,0.42896596]
[1758889560827,0.1218653,108920.0,108910.0,1.29212596]
[1758889561222,0.1218653,108920.0,108910.0,1.38387986]
[1758889563131,0.1218653,108920.0,108910.0,1.38263986]
[1758889564335,0.1218653,108920.0,108910.0,1.38255986]
[1758889565423,0.87684456,108920.0,108910.0,0.0739867]
[1758889565623,0.87684456,108920.0,108910.0,0.42896596]
[1758889565819,0.87684456,108920.0,108910.0,0.0739867]
[1758889566025,0.87684456,108920.0,108910.0,0.42896596]
[1758889566220,0.87684456,108920.0,108910.0,0.52071986]
[1758889566428,0.87684456,108920.0,108910.0,0.42896596]
[1758889566631,0.5218653,108920.0,108910.0,0.0739867]
[1758889568030,0.5218653,108920.0,108910.0,0.1657406]
[1758889572742,0.5218653,108920.0,108910.0,0.0739867]
[1758889573324,0.1282123,108900.0,108890.0,0.08240194]
[1758889573531,0.1282207,108890.0,108880.0,0.97633926]
[1758889573840,0.1282207,108890.0,108880.0,0.95275408]
[1758889574830,0.1252207,108890.0,108880.0,0.95275408]
[1758889575040,0.13449251,108890.0,108880.0,0.95275408]
[1758889575239,0.20802716,108890.0,108880.0,0.95275408]
[1758889575538,0.20802716,108890.0,108880.0,0.4793392]
[1758889575838,0.20202716,108890.0,108880.0,0.95275408]
[1758889576842,0.20202716,108890.0,108880.0,0.56519408]
[1758889577141,0.20202716,108890.0,108880.0,1.42627408]
[1758889577331,0.22802716,108890.0,108880.0,1.42627408]
[1758889578237,0.21875535,108890.0,108880.0,1.42627408]
[1758889578630,0.21875535,108890.0,108860.0,0.18313833]
[1758889578827,0.1282376,108870.0,108860.0,0.0917923]
[1758889579034,0.03645,108870.0,108860.0,1.42132719]
[1758889580738,0.1282376,108870.0,108860.0,0.18363231]
[1758889580943,0.1282376,108870.0,108860.0,1.42629088]
[1758889581440,0.1282376,108870.0,108860.0,0.952876]
[1758889581629,0.1432376,108870.0,108860.0,1.42629088]
[1758889582236,0.1282458,108860.0,108850.0,0.40673]
[1758889582635,0.1282458,108860.0,108850.0,1.3596143]
[1758889582837,0.1282458,108860.0,108850.0,1.83302918]
[1758889583136,0.13735942,108860.0,108850.0,1.83302918]
[1758889583341,0.03645,108860.0,108850.0,1.83302918]
[1758889583742,0.03945,108860.0,108850.0,1.83302918]
[1758889584144,0.03945,108860.0,108850.0,1.83502918]
[1758889585248,0.03945,108860.0,108850.0,1.3616143]
[1758889585446,0.03945,108860.0,108850.0,1.83502918]
[1758889586344,0.03945,108860.0,108850.0,2.23502918]
[1758889586551,0.01649,108860.0,108850.0,2.2809645]
[1758889588648,0.01649,108860.0,108850.0,2.2810445]
[1758889589554,0.01649,108860.0,108850.0,1.8810445]
[1758889590053,0.01649,108860.0,108850.0,1.8810045]
[1758889591556,0.01649,108860.0,108850.0,1.4198845]
[1758889591750,0.01649,108860.0,108850.0,2.2810445]
[1758889592050,0.01649,108860.0,108850.0,1.0198845]
[1758889592247,0.01649,108860.0,108850.0,1.8810445]
[1758889592751,0.01649,108860.0,108850.0,0.92801918]
[1758889592947,0.01649,108860.0,108850.0,1.78917918]
[1758889594156,0.01649,108860.0,108850.0,1.78913918]
[1758889594956,0.01649,108860.0,108850.0,1.8810045]
[1758889595756,0.01649,108860.0,108850.0,1.8809645]
[1758889596456,0.01649,108860.0,108850.0,1.0198445]
[1758889596756,0.1082856,108860.0,108850.0,1.0198445]
[1758889597055,0.1082856,108860.0,108850.0,1.8809645]
[1758889597548,0.01649,108860.0,108850.0,1.0198445]
[1758889597749,0.01649,108860.0,108850.0,1.8809645]
[1758889597952,0.1082858,108860.0,108850.0,1.8809645]
[1758889598349,0.01649,108860.0,108850.0,1.8809645]
[1758889601245,0.01649,108860.0,108850.0,1.94678983]
[1758889602158,0.01649,108860.0,108850.0,2.2809645]
[1758889602353,0.01649,108860.0,108850.0,2.34678983]
[1758889602555,0.01649,108860.0,108850.0,2.34674983]
[1758889604057,0.01349,108870.0,108860.0,0.0917956]
[1758889604257,0.01349,108870.0,108860.0,0.56521048]
[1758889604460,0.01349,108870.0,108860.0,1.06719916]
[1758889604651,0.01349,108870.0,108860.0,1.15906448]
[1758889605352,0.02049,108870.0,108860.0,1.15906448]
[1758889606459,0.02049,108870.0,108860.0,1.24146642]
[1758889608260,0.02049,108870.0,108860.0,1.15906448]
[1758889610563,0.02049,108870.0,108860.0,2.02002448]
[1758889611767,0.02049,108870.0,108860.0,1.5466096]
[1758889612060,0.02049,108870.0,108860.0,2.02002448]
[1758889616261,0.02049,108870.0,108860.0,2.08595792]
[1758889616956,0.02049,108870.0,108860.0,2.10242642]
[1758889617158,0.01349,108880.0,108860.0,2.5758413]
[1758889617352,0.08702465,108890.0,108880.0,0.0917787]
[1758889617568,0.08702465,108890.0,108880.0,1.96669927]
[1758889617964,0.08702465,108890.0,108880.0,2.05855615]
[1758889618866,0.09802465,108890.0,108880.0,1.19639615]
[1758889619069,0.09802465,108890.0,108880.0,2.05811615]
[1758889619360,0.09902465,108890.0,108880.0,2.05811615]
[1758889619760,0.02549,108890.0,108880.0,1.99218534]
[1758889620766,0.02449,108890.0,108880.0,1.99218534]
[1758889620966,0.01349,108890.0,108880.0,1.99918534]
[1758889621358,0.01349,108890.0,108880.0,1.13746534]
[1758889621561,0.01349,108890.0,108880.0,1.99158534]
[1758889621763,0.01349,108890.0,108880.0,1.99858534]
[1758889624568,0.01349,108890.0,108880.0,2.00058534]
[1758889624767,0.01349,108890.0,108880.0,2.06644354]
[1758889625268,0.01349,108890.0,108880.0,2.06444354]
[1758889626171,0.08900479,108900.0,108890.0,0.0917705]
[1758889626465,0.08900479,108900.0,108890.0,0.63104081]
[1758889626768,0.08900479,108900.0,108890.0,0.72288082]
[1758889627563,0.09000479,108900.0,108890.0,0.72288082]
[1758889627764,0.10000479,108900.0,108890.0,0.72288082]
[1758889627960,0.10000479,108900.0,108890.0,1.58368082]
[1758889628566,0.10000479,108900.0,108890.0,1.82026178]
[1758889629066,0.09900479,108900.0,108890.0,1.82026178]
[1758889629268,0.09900479,108900.0,108890.0,1.8295684]
[1758889630366,0.09900479,108900.0,108890.0,2.18456632]
[1758889630568,0.0132,108930.0,108890.0,2.66047137]
[1758889630763,0.0132,108940.0,108930.0,0.0917367]
[1758889631068,0.0132,108940.0,108930.0,1.66249254]
[1758889631465,0.0132,108940.0,108930.0,1.75431147]
[1758889631659,0.0132,108940.0,108930.0,0.18355563]
[1758889631967,0.0132,108940.0,108930.0,1.70038187]
[1758889632168,0.0302,108940.0,108930.0,1.63451147]
[1758889632760,0.0242,108940.0,108930.0,1.98950939]
[1758889632960,0.0242,108940.0,108930.0,2.05537979]
[1758889633166,0.0242,108940.0,108930.0,1.98950939]
[1758889633471,0.0242,108940.0,108930.0,1.99866976]
[1758889634366,0.0132,108950.0,108940.0,0.0917281]
[1758889634566,0.0132,108950.0,108940.0,1.15672186]
[1758889634964,0.0132,108950.0,108940.0,1.24851972]
[1758889635567,0.0162,108950.0,108940.0,1.24851972]
[1758889636066,0.0172,108950.0,108940.0,2.35851972]
[1758889636471,0.0172,108950.0,108940.0,2.0035218]
[1758889636672,0.4172,108950.0,108940.0,2.8641218]
[1758889638667,0.4172,108950.0,108940.0,2.0035218]
[1758889638868,0.4172,108950.0,108940.0,2.8640418]
[1758889640875,0.50892,108950.0,108940.0,2.7723137]
[1758889641073,0.50892,108950.0,108940.0,2.0035221]
[1758889641276,0.50892,108950.0,108940.0,2.8640021]
[1758889641473,0.4172,108950.0,108940.0,2.8640021]
[1758889644473,0.4172,108950.0,108940.0,1.7540021]
[1758889646578,0.4172,108950.0,108940.0,2.10900002]
[1758889646781,0.0172,108950.0,108940.0,2.10900002]
[1758889647079,0.08585841,108960.0,108950.0,0.0917202]
[1758889647279,0.08585841,108960.0,108950.0,0.80171604]
[1758889647479,0.0132,108960.0,108950.0,0.80171604]
[1758889647675,0.0132,108960.0,108950.0,0.89350547]
[1758889647877,0.0132,108960.0,108950.0,1.24850339]
[1758889648380,0.0172,108960.0,108950.0,0.89350547]
[1758889648673,0.0212,108960.0,108950.0,0.89350547]
[1758889648983,0.0212,108960.0,108950.0,1.75378547]
[1758889650080,0.0212,108960.0,108950.0,2.10878339]
[1758889650981,0.0212,108960.0,108950.0,1.75378547]
[1758889651978,0.008,108960.0,108950.0,2.10878339]
[1758889652182,0.08775899,108970.0,108950.0,2.10878339]
[1758889652384,0.08775899,108970.0,108960.0,1.15670556]
[1758889653083,0.0132,108970.0,108960.0,1.24848657]
[1758889654177,0.0132,108980.0,108970.0,0.0917034]
[1758889654376,0.03496,108980.0,108970.0,2.01681716]
[1758889654575,0.03496,108980.0,108970.0,1.66181924]
[1758889654776,0.03496,108980.0,108970.0,1.75359182]
[1758889655184,0.0132,108980.0,108970.0,1.75359182]
[1758889655485,0.0182,108980.0,108970.0,1.75359182]
[1758889656685,0.0282,108980.0,108970.0,1.75359182]
[1758889659987,0.0282,108980.0,108970.0,2.10858974]
[1758889660286,0.09993538,108980.0,108970.0,1.75359182]
[1758889660486,0.0282,108980.0,108970.0,1.75359182]
[1758889661682,0.0282,108980.0,108970.0,0.89347182]
[1758889661882,0.04996,108980.0,108970.0,1.75339182]
[1758889664792,0.1247542,108980.0,108970.0,1.75339182]
[1758889665595,0.1029942,108980.0,108970.0,2.10838974]
[1758889665982,0.0132,108990.0,108980.0,0.0916949]
[1758889666291,0.03496,108990.0,108980.0,1.15668866]
[1758889666692,0.1138843,109000.0,108980.0,1.24838356]
[1758889666884,0.05828446,109000.0,108990.0,2.01652026]
[1758889667080,0.105225,109010.0,109000.0,0.1140779]
[1758889667081,0.126985,109010.0,109000.0,0.1140779]
[1758889667395,0.13595234,109010.0,109000.0,1.17907166]
[1758889667688,0.11682903,109010.0,109000.0,1.17907166]
[1758889668082,0.10786169,109010.0,109000.0,1.17907166]
[1758889668291,0.03531,109020.0,109010.0,0.1140697]
[1758889668491,0.03531,109020.0,109010.0,2.05160346]
[1758889668792,0.1269713,109020.0,109010.0,1.68382554]
[1758889669194,0.1269713,109020.0,109010.0,0.9738297]
[1758889669394,0.13607446,109020.0,109010.0,1.68382554]
[1758889669694,0.13607446,109020.0,109010.0,1.68378554]
[1758889670296,0.02176,109020.0,109010.0,1.68378554]
[1758889670696,0.02176,109020.0,109010.0,2.03878346]
[1758889670990,0.02276,109020.0,109010.0,2.03878346]
[1758889671195,0.005,109020.0,109010.0,2.03878346]
[1758889671595,0.07920228,109020.0,109010.0,1.77551603]
[1758889672188,0.005,109020.0,109010.0,2.13051395]
[1758889672389,0.005,109020.0,109010.0,1.77551603]
[1758889672599,0.005,109020.0,109010.0,2.13051395]
[1758889673094,0.1269602,109040.0,109030.0,0.1140528]
[1758889673296,0.1269602,109040.0,109030.0,0.73239584]
[1758889673690,0.1269602,109040.0,109030.0,0.37739792]
[1758889673892,0.1269602,109040.0,109030.0,1.23699792]
[1758889674291,0.1269602,109040.0,109030.0,0.37739792]
[1758889674594,0.1419602,109040.0,109030.0,1.23795792]
[1758889675496,0.21600215,109040.0,109030.0,1.23795792]
[1758889675887,0.21600215,109040.0,109030.0,0.88296]
[1758889676196,0.21600215,109040.0,109030.0,1.23795792]
[1758889676496,0.21600215,109040.0,109030.0,1.23791792]
[1758889676497,0.97100007,109040.0,109030.0,1.23791792]
[1758889676796,1.32599799,109040.0,109030.0,0.001]
[1758889676994,0.97100007,109040.0,109030.0,0.37839792]
[1758889677992,0.98029441,109040.0,109030.0,0.37839792]
[1758889678194,0.98029441,109040.0,109030.0,0.001]
[1758889678395,1.33529233,109040.0,109030.0,0.001]
[1758889679088,1.35844839,109040.0,109030.0,0.001]
[1758889680892,0.64845255,109040.0,109030.0,0.001]
[1758889681092,1.35844839,109040.0,109030.0,0.001]
[1758889681396,2.21784839,109040.0,109030.0,0.001]
[1758889681596,2.19469233,109040.0,109030.0,0.001]
[1758889682202,0.1272229,109030.0,109020.0,0.44665922]
[1758889682402,0.48222082,109030.0,109020.0,0.46929922]
[1758889682794,0.1272229,109030.0,109020.0,0.82429714]
[1758889683704,0.48022092,109030.0,109020.0,0.1143013]
[1758889683899,0.88022092,109030.0,109020.0,0.02264]
[1758889684100,0.03644,109010.0,109000.0,0.46923262]
[1758889684297,0.03644,109010.0,109000.0,0.82423054]
[1758889684497,0.1281098,109010.0,109000.0,0.82423054]
[1758889684696,0.0916698,109010.0,109000.0,0.80167054]
[1758889685200,0.0916866,108990.0,108980.0,0.44668662]
[1758889685392,0.0916866,108990.0,108980.0,0.80168454]
[1758889685593,0.0916866,108990.0,108980.0,1.75274345]
[1758889685806,0.0916866,108990.0,108980.0,1.66100454]
[1758889686105,0.0906866,108990.0,108980.0,1.66100454]
[1758889686706,0.09984345,108990.0,108980.0,0.80168454]
[1758889686900,0.08984345,108990.0,108980.0,1.66100454]
[1758889687502,0.08984345,108990.0,108980.0,1.66300454]
[1758889688097,0.001,108990.0,108980.0,2.01800246]
[1758889688400,0.07480997,109000.0,108990.0,0.0916866]
[1758889688604,0.11052099,109010.0,109000.0,0.0916782]
[1758889688805,0.11052099,109010.0,109000.0,0.80167404]
[1758889689208,0.01884339,109010.0,109000.0,2.01599196]
[1758889689704,0.01884339,109010.0,109000.0,1.66099404]
[1758889690503,0.01884101,109030.0,109020.0,0.0916614]
[1758889690710,0.01884101,109030.0,109020.0,0.5639574]
[1758889691403,0.07404195,109040.0,109030.0,0.091653]
[1758889691610,0.88723799,109050.0,109040.0,0.0916446]
[1758889691611,0.97888049,109050.0,109040.0,0.0916446]
[1758889691914,0.9509531,109060.0,109050.0,0.0916361]
[1758889692104,0.97414184,109060.0,109050.0,0.5639321]
[1758889692306,0.97414184,109060.0,109050.0,0.472296]
[1758889692616,0.97414184,109060.0,109040.0,0.43966838]
[1758889693012,0.0916361,109050.0,109040.0,0.43966838]
[1758889693413,0.091653,109030.0,109010.0,0.59720298]
[1758889693611,0.125653,109030.0,109020.0,1.29894838]
[1758889694011,0.125653,109030.0,109020.0,1.69894838]
[1758889694212,0.091653,109030.0,109020.0,1.69894838]
[1758889694410,0.09165,109040.0,109020.0,1.88232726]
[1758889694613,0.09165,109040.0,109020.0,1.48232726]
[1758889694815,0.012,109030.0,109020.0,1.48232726]
[1758889695109,0.08560153,109030.0,109020.0,1.48232726]
[1758889695309,0.012,109030.0,109020.0,1.48232726]
[1758889696512,0.0916415,109050.0,109030.0,0.0916508]